Cogmind - Beta 15 @@@ ROGUE MODE // 2025.06.22 @ 04:58:46 Player: LameThyst Result: Destroyed self with Subdweller Shrapnel Launcher Performance ------------- Evolutions (0) 0 Regions Visited (2) 400 Robots Destroyed (11) 55 Value Destroyed (428) 428 Prototype IDs (0) 0 Alien Tech Used (0) 0 Bonus (0) 0 TOTAL SCORE: 883 Bonus ------- None Cogmind --------- Core Integrity 0/250 Matter 262/300 Energy 180/200 System Corruption 0% Temperature Cool (0) Movement Rolling (110) Location -10/Subcaves Parts ------- > --- POWER (1) -------- Subdweller Power Source > --- PROPULSION (2) --- Subdweller Monowheel Subdweller Monowheel > --- UTILITY (2) ------ Small Storage Unit Subdweller Optics > --- WEAPON (2) ------- Subdweller Beam Cannon Subdweller Shrapnel Launcher > --- INVENTORY (8) ---- Subdweller Monowheel High-capacity Battery (250) Medium Matter Pod (100) Makeshift System Restoration Module Subdweller Machine Gun Subdweller Machine Gun Battle Cannon Peak State ------------ > --- POWER ------------ Subdweller Power Source > --- PROPULSION ------- Subdweller Monowheel Subdweller Monowheel > --- UTILITY ---------- Small Storage Unit Subdweller Optics > --- WEAPON ----------- Subdweller Beam Cannon Subdweller Machine Gun > --- INVENTORY -------- Subdweller Power Source Heat Sink High-capacity Battery Medium Matter Pod Subdweller Machine Gun Barrage Gun Battle Cannon Subdweller Shrapnel Launcher [Rating: 14] Favorites ----------- Power Light Ion Engine Engine Light Ion Engine Propulsion Aluminum Leg Leg Aluminum Leg Wheel Subdweller Monowheel Utility Small Storage Unit Device Subdweller Optics Storage Small Storage Unit Protection Hardened Light Armor Plating Weapon Subdweller Machine Gun Energy Gun Small Laser Energy Cannon Subdweller Beam Cannon Ballistic Gun Subdweller Machine Gun Launcher Subdweller Shrapnel Launcher Impact Weapon Mace Build | -11 -10 -10 ------- Run | Yrd Mat Sub Slots Evolved . | . . . Power . | . . . Propulsion . | . . . Utility . | . . . Weapon . | . . . Parts Attached 28 | 6 3 19 Power 5 | 1 . 4 Engine 5 | 1 . 4 Core . | . . . Reactor . | . . . Propulsion 8 | 2 . 6 Treads . | . . . Leg 4 | 2 . 2 Wheel 4 | . . 4 Hover . | . . . Flight . | . . . Utility 5 | 1 3 1 Device 2 | . 1 1 Storage 1 | 1 . . Processor . | . . . Hackware . | . . . Protection 2 | . 2 . Artifact . | . . . Weapon 10 | 2 . 8 Energy Gun 2 | 1 . 1 Energy Cannon 1 | . . 1 Ballistic Gun 5 | 1 . 4 Ballistic Cannon . | . . . Launcher 1 | . . 1 Special Weapon . | . . . Impact Weapon 1 | . . 1 Slashing Weapon . | . . . Piercing Weapon . | . . . Special Melee Weapon . | . . . Unidentified Prototypes . | . . . Parts Lost 8 | . . 8 Power 2 | . . 2 Propulsion 2 | . . 2 Utility 1 | . . 1 Weapon 3 | . . 3 Highest Loss Streak 4 | . . 4 To Critical Strikes . | . . . Average Backups 6 | 1 7 7 Power . | . 1 . Propulsion 1 | . 1 1 Utility 3 | . 2 3 Weapon 1 | . 1 2 Tool/Special . | . . . Unused Backups 11 | . 5 6 Power . | . . . Propulsion 3 | . 2 1 Utility 4 | . 1 3 Weapon 4 | . 2 2 Tool/Special . | . . . Average Slot Usage (%) 94 | . 97 94 Engine 11 | . 14 10 Leg 20 | . 28 18 Wheel 6 | . . 8 Device 5 | . 1 6 Storage 14 | . 14 14 Protection 7 | . 10 6 Energy Gun 9 | . 14 8 Energy Cannon 3 | . . 3 Ballistic Gun 13 | . 14 13 Impact Weapon 1 | . . 1 Peak Build Rating 14 | 6 8 14 Average Rating 9 | 4 7 10 On Entrance 4 | . 6 8 Naked Turns . | . . . Heaviest Build 28 | 11 16 28 Greatest Support 40 | 20 20 40 Greatest Overweight (x) 4 | 2 . 4 Average Overweight (x) . | . . . Largest Inventory Capacity 8 | 8 8 8 Average Capacity 7 | 7 8 8 Most Carried 8 | 5 8 8 Average Carried 6 | 2 7 7 Final Capacity 8 | 8 8 8 Final Carried 8 | 4 8 7 Class Distribution -------------------- 91% | Mutant 8% | Scavenger-Mutant Dominant Class ---------------- Mutant | -10/Materials Mutant | -10/Subcaves Resources | -11 -10 -10 ----------- Run | Yrd Mat Sub Matter Collected 727 | 178 82 467 Remotely . | . . . Salvage Created 498 | . 82 416 Parts 33 | . 5 28 Haulers Intercepted . | . . . Recyclers Shooed . | . . . Parts Field Recycled . | . . . Retrieved Matter . | . . . Parts Self-Destructed 8 | . . 8 Prevented . | . . . Kills | -11 -10 -10 ------- Run | Yrd Mat Sub Combat Hostiles Destroyed 11 | . 2 9 Melee 2 | . . 2 Guns 6 | . 2 4 Cannons 1 | . . 1 Classes Destroyed 2 | . 1 1 Grunt 2 | . 2 . Subdweller 9 | . . 9 Best Kill Streak 2 | . 2 2 Combat Bots Only 2 | . 2 2 Max Kills in Single Turn 1 | . 1 1 Gunslinging . | . . . Exploded . | . . . Melee 1 | . . 1 Uniques/NPCs Destroyed . | . . . Combat | -11 -10 -10 -------- Run | Yrd Mat Sub Hostile Shots Fired 94 | . 8 86 Missed 19 | . 3 16 Hits 75 | . 5 70 Projectile 75 | . 5 70 Damage Taken 1615 | . 54 1561 Core 256 | . . 256 Absorbed by Shields . | . . . Core Remaining (%) 100 | 100 . . Volleys Fired 47 | . 8 39 Largest 2 | . 2 2 Hottest 120 | . 60 120 Shots Fired 78 | . 16 62 Gun 70 | . 16 54 Cannon 7 | . . 7 Launcher 1 | . . 1 Special . | . . . Kinetic 47 | . 8 39 Thermal 28 | . 8 20 Explosive . | . . . Electromagnetic 3 | . . 3 Robot Hit Streak 18 | . 12 18 Robot Miss Streak 4 | . 1 4 Penetration Max . | . . . Secondary Targets 1 | . . 1 Max Gunslinging Chain 1 | . . 1 Shots Hit Robots 60 | . 12 48 Core Hits 19 | . 5 14 Critical Kills 2 | . . 2 Critical Parts Destroyed . | . . . Critical Strikes 3 | . . 3 Meltdown 2 | . . 2 Destroy 1 | . . 1 Melee Attacks 7 | . . 7 Impact 7 | . . 7 Slashing . | . . . Piercing . | . . . Sneak Attacks . | . . . Combat Hostiles . | . . . Follow-up Attacks . | . . . Damage Inflicted 1011 | . 164 847 Guns 728 | . 164 564 Cannons 143 | . . 143 Explosions . | . . . Melee 140 | . . 140 Ramming . | . . . Kinetic 496 | . 87 409 Thermal 355 | . 77 278 Explosive . | . . . Electromagnetic 20 | . . 20 Impact 140 | . . 140 Slashing . | . . . Piercing . | . . . Highest Corruption . | . . . Average Corruption . | . . . Corruption Purged . | . . . Corruption Blocked . | . . . Overload Shots . | . . . Overflow Damage . | . . . Projectiles . | . . . Explosions . | . . . Melee . | . . . Knockbacks . | . . . Impact . | . . . Kinetic . | . . . Secondary . | . . . Self-Inflicted Damage 56 | . . 56 Shots 1 | . . 1 Rammed . | . . . Targets Rammed . | . . . Kicked . | . . . Crushed . | . . . Highest Temperature 93 | . 93 . Average Temperature 46 | . 46 . Received Heat Transfer 186 | . 30 156 Siege Activations . | . . . Martial Activations . | . . . Shielding Activations . | . . . Robots Disrupted . | . . . Combat Hostiles . | . . . Robots Corrupted . | . . . Combat Hostiles . | . . . Parts Fried . | . . . Impact Corruptions . | . . . Robots Melted 2 | . . 2 Combat Hostiles 2 | . . 2 Parts Melted 5 | . . 5 Heat Transferred 660 | . 175 485 Parts Sabotaged . | . . . Parts Stolen . | . . . Parts Stripped . | . . . Power Chain Reactions . | . . . Alert | -11 -10 -10 ------- Run | Yrd Mat Sub Maximum Alert Level . | . . . Low Security (%) 100 | 100 100 . Level 1 . | . . . Level 2 . | . . . Level 3 . | . . . Level 4 . | . . . Level 5 . | . . . High Security . | . . . Max Security . | . . . Peak Influence 51 | . 51 . Initial . | . . . Average 7 | . 10 . Influence Increases 51 | . 51 . Destroy 0b10 Robot/C 40 | . 40 . Destroy Leader 10 | . 10 . Destroy Structure 1 | . 1 . Influence Decreases 51 | . 51 . Time Decay 51 | . 51 . Squads Dispatched 1 | . 1 . Investigation 1 | . 1 . Extermination . | . . . Reinforcement . | . . . Assault . | . . . Garrison . | . . . Intercept . | . . . Searches Triggered . | . . . Construction Impeded . | . . . Haulers Reinforced . | . . . Active Scanning Responses . | . . . Cargo Convoy Interrupts . | . . . Stealth | -11 -10 -10 --------- Run | Yrd Mat Sub Distress Signals . | . . . Communications Jammed . | . . . Distress Signals . | . . . Times Spotted 14 | . 3 11 Peak Tracking Total 2 | . 2 2 Tactical Retreats . | . . . Traps | -11 -10 -10 ------- Run | Yrd Mat Sub Traps Triggered 2 | . 1 1 Indirectly . | . . . Trap Hack Attempts . | . . . Triggered . | . . . Disarmed . | . . . Reprogrammed . | . . . Reused . | . . . Traps Extracted . | . . . Installed . | . . . Triggered . | . . . Machines | -11 -10 -10 ---------- Run | Yrd Mat Sub Machines Disabled . | . . . Max in Single Turn . | . . . Machines Repaired . | . . . Machines Dismantled . | . . . Machines Sabotaged . | . . . Overloaded Fab Kills . | . . . Hacking | -11 -10 -10 --------- Run | Yrd Mat Sub Machines Accessed . | . . . Terminals . | . . . Fabricators . | . . . Repair Stations . | . . . Recycling Units . | . . . Scanalyzers . | . . . Garrison Access . | . . . Total Hacks . | . . . Successful . | . . . Failed . | . . . Catastrophic . | . . . Database Lockouts . | . . . Manual . | . . . Terminals . | . . . Fabricators . | . . . Repair Stations . | . . . Recycling Units . | . . . Scanalyzers . | . . . Garrison Access . | . . . Terminal Hacks . | . . . Fabricator Hacks . | . . . Repair Station Hacks . | . . . Recycling Unit Hacks . | . . . Scanalyzer . | . . . Garrison Access Hacks . | . . . Unauthorized Hacks . | . . . Terminals . | . . . Fabricators . | . . . Repair Stations . | . . . Recycling Units . | . . . Scanalyzers . | . . . Garrison Access . | . . . Data Cores Recovered . | . . . Used . | . . . Hacking Detections . | . . . Full Trace Events . | . . . Feedback Events . | . . . Feedback Blocked . | . . . Robot Schematics Acquired . | . . . Robots Built . | . . . Authchips . | . . . Time . | . . . Total Robot Build Rating . | . . . Part Schematics Acquired . | . . . Parts Built . | . . . Authchips . | . . . Time . | . . . Total Part Build Rating . | . . . Parts Repaired . | . . . Time . | . . . Parts Recycled . | . . . Recycled Matter . | . . . Retrieved Matter . | . . . Retrieved Components . | . . . Parts Scanalyzed . | . . . Part Schematics Acquired . | . . . Parts Damaged . | . . . Bothacking | -11 -10 -10 ------------ Run | Yrd Mat Sub Used RIF Installer . | . . . Robots Hacked . | . . . Non-combat . | . . . Combat . | . . . Robot Hacks Applied . | . . . Relay Couplers Released . | . . . Fabnet Peak Effective % . | . . . Robots Rewired . | . . . Allies Hacked . | . . . Hacks Repelled . | . . . Allies | -11 -10 -10 -------- Run | Yrd Mat Sub Total Allies . | . . . Largest Group . | . . . Highest-Rated Group . | . . . Highest-Rated Ally . | . . . Total Orders . | . . . Ally Attacks . | . . . Total Damage . | . . . Kills . | . . . Allies Corrupted . | . . . Allies Melted . | . . . Intel | -11 -10 -10 ------- Run | Yrd Mat Sub Active Infowar (turns) 424 | . . 424 Optics 424 | . . 424 Robot Analysis Total . | . . . Derelict Logs Recovered 1 | . . 1 Drone Launches . | . . . Drone Recoveries . | . . . Exploration | -11 -10 -10 ------------- Run | Yrd Mat Sub Turns Passed 1190 | 68 245 877 Spaces Moved 766 | 40 170 556 Core 10 | 7 . 3 Treads . | . . . Legs 492 | 33 170 289 Wheels 264 | . . 264 Hover . | . . . Flight . | . . . Fastest Speed 50 | 50 120 110 Average Speed 121 | 138 120 121 Slowest Speed 250 | 190 120 250 Overloaded Moves . | . . . Propulsion Burnouts . | . . . Robots Hopped . | . . . Potential Cave-ins . | . . . Cave-ins Triggered . | . . . Exploration Rate (%) 22 | 4 31 31 Regions Visited 2 Branch Regions 1 Pre-discovered Areas . | . . . Known Exits Taken . | . . . Unknown Exits Taken 2 | 1 1 . Scrap Searched 7 | . . 7 Spaces Dug . | . . . Terrain Destroyed 3 | . . 3 Melee . | . . . Projectile 2 | . . 2 AOE 1 | . . 1 Terrain Rammed . | . . . Walls Destroyed . | . . . Machines Disabled . | . . . Actions | -11 -10 -10 --------- Run | Yrd Mat Sub Total 935 | 50 198 687 Wait 20 | . 2 18 Move 764 | 39 169 556 Hop . | . . . Pick Up 35 | 5 10 20 Fast Attach 8 | 5 . 3 Attach 9 | 1 1 7 Detach . | . . . Swap 21 | . 2 19 Drop 24 | . 6 18 Fire 47 | . 8 39 Melee 7 | . . 7 Ram . | . . . Kick . | . . . Crush . | . . . Escape Stasis . | . . . Rewire . | . . . Trap . | . . . Miscellaneous . | . . . Route ------- -11/Scrapyard -10/Materials -10/Subcaves History --------- Turn | Location | Event 9 | -11/Scrapyard | Discovered new exit (range 16) 69 | -11/Scrapyard | Entered Materials 293 | -10/Materials | Discovered new exit (range 7) 310 | -10/Materials | Build established: Mutant 314 | -10/Materials | Entered Subcaves 315 | -10/Subcaves | Approached by a straggling Scientist 320 | -10/Subcaves | Learned Materials stockpile data 596 | -10/Subcaves | Core integrity fell below 50% 621 | -10/Subcaves | Core integrity fell below 20% 659 | -10/Subcaves | Lost 4 parts (2n2w) 1191 | -10/Subcaves | Destroyed self with Subdweller Shrapnel Launcher Last Messages --------------- 01102_ Searching scrap... 01102_ Found Sub. Monowheel. 01102_ Found Mak. Flight Unit. 01102_ Found 69 Matter. 01106_ Dropped Heat Sink. 01107_ Acquired Mak. System Restoration Module. 01111_ Dropped Barrage Gun. 01112_ Acquired 10 matter. 01114_ Acquired Sub. Monowheel. 01132_ Sub. Power Source shoots sparks and powers down. 01141_ Subatomizers dissect the Disposable Heat Sink. 01143_ Dropped Broken Sub. Power Source. 01145_ Acquired 2 matter. 01191_ Q9-830(R) suffers critical hit (Meltdown). 01191_ Disposable Heat Sink melted. 01191_ Sub. Optics melted. 01191_ Sub. Machine Gun melted. Map ----- +----------------------------------------------------+ | ?????????????????????????????????????????????????? | | ?????????????????????????????????????????????????? | | ?????????????????????????????????????????????????? | | ?????????????????????????????????????????????????? | | ?????????????????????????????????????????????????? | | ?????????????????????????????????????????????????? | | ?????????????????????????????????????????????????? | | ?????????????????????????????????????????????????? | | ?????????????????????????????????????????????????# | | ??????????????????????? ????????????????????????? | | ??????????????????????# ????????????????????????? | | ??????????????????????# ?????????????####???????# | | ??????????????????????# ???????????###""######?? | | ??????????????????????# ???????????#" """##" ### | | ?????????????????????## ?????????##"%= "## %[## | | ?????????????????????" ?????????#""/[= ## = ## | | ??????????????????????" ?????????#""%!%"##" "# | | ?????????????????????? ?????????#" "#### ## | | ??????????????????????# ?????????# "##?# #" | | ??????????????????????# ?????????# ###??# | | ?????????????????????## ?????????# #????# | | ?????????????????????# *?????????# #??### #" | | ?????????????????????##&%?????????#" ##?#"" ###" | | ?????????????????????# #;#??????# "###" "## | | ?????????????????????# ###????##" # =## | | ?????????????????????# @ #?????##" ""##"&## | | ????????????????????## #####??#######"&%&! | | ?????????????????# ## #??????# ## && | | ?????????????????# #####??# % ## | | ?????????????????# ## ##?# #? | | ?????????????????# #?## ###### * ## | | ?????????????????# ???# #???## | | ?????????????????# ????# #????## ## | | ?????????????????# ?????## #????## #? | | ???????????????? ??????## #????# #? | | ???????????????# ????????# #????# ## | | ???????????????# ?????????# #??### | | ???????????????# ?????????# #### | | ???????????????# ????????# ### | | ???????????????#?????????## ##?# # | | ??????????????????????????# ##??## # | | ??????????????????????????## #????#### [ | | ??????????????????????????# #???????## | | ??????????????????????????# #????????# | | ??????????????????????????## # ### ### & ## | | ???????????????????????????##### ### | | ???????????????????????????????# ### | | ??????????????????????????????# # | | ?????????????????????????????????## ##### | | ??????????????????????????????????# ????## ## | +----------------------------------------------------+ Best States ------------- Heat Dissipation 35 Energy Generation 15 Energy Capacity 200 Matter Stores 300 Matter Capacity 300 Sight Range 21 Terrain Scan Density 10 Armor Coverage 150 Evasion (%) 55 Item Schematics ----------------- None Robot Schematics ------------------ None Fabricated ------------ Nothing Repaired ---------- Nothing Alien Tech Used ----------------- None Achievements -------------- None Challenges ------------ None Game ------ Seed GammaTeslaSword Manual? 0 Play Time 00:16:28 Cumulative 10.9 hours Start 2025.06.22 @ 04:42:10 End 2025.06.22 @ 04:58:46 Sessions 1 Manual Loads 0 Difficulty Rogue Special Mode None Game No. 13 Rogue 13 Adventurer 0 Explorer 0 Win Type - Total 0 Types 0/0/0/0/0/0/0/0/0/0 Lore% 4 Gallery% 16 Achievement% 14 Wizard Run 0 Options --------- Layout 1 ASCII 0 Keyboard 0 Movement Mouse Keybinds 0 Fullscreen 2 Font 48/Smallcaps Map View 50x35 Zoom Use 0% Tactical HUD 1 Map Filters NONE Filters NONE Steam 0 RUN: 91d2531f-6989-49b4-809b-3898c1af07d3